[Event "79th ARM-ch 1st League 2018"]
[Site "Yerevan"]
[Date "2018.08.19"]
[Round "10"]
[White "Hayrapetyan, Hovik"]
[Black "Hayrapetyan, Artavazd R"]
[Result "1-0"]
[ECO "D35"]
[WhiteElo "2439"]
[BlackElo "2371"]
[Annotator "NA"]
[PlyCount "155"]
[EventDate "2018.08.09"]
[EventType "tourn"]
[EventCountry "ARM"]
[SourceTitle "playchess.com"]
[Source "ChessBase"]
[SourceQuality "1"]
[TimeControl "40/5400+30:1800+30"]

1. d4 {[%emt 0:00:31]} Nf6 {[%emt 0:00:47]} 2. c4 {[%emt 0:01:14]} e6 {[%emt 0:00:12]} 3. Nc3 {[%emt 0:00:05]} d5 {[%emt 0:00:05]} 4. cxd5 {[%emt 0:02:05]} exd5 {[%emt 0:00:07]} 5. Bg5 {[%emt 0:00:09]} c6 {[%emt 0:02:15] LiveBook: 3294 Games} 6. e3 {[%emt 0:01:14]} Be7 {[%emt 0:04:16]} 7. Bd3 {[%emt 0:00:27]} Be6 {[%emt 0:01:00]} 8. Nge2 {[%emt 0:00:17]} Nh5 {[%emt 0:02:07] D35: Queen's Gambit Declined: Exchange Variation} 9. Bxe7 {[%emt 0:00:36]} Qxe7 {[%emt 0:00:05]} 10. Qc2 {[%emt 0:03:18]} Nd7 {[%emt 0:03:52]} 11. Rb1 {[%emt 0:00:30]} a5 $146 {[%emt 0:00:19]} ({Predecessor:} 11... g6 12. b4 a6 13. a4 O-O 14. O-O b5 {½-½ (14) Gavrikov,V (2560)-Hertneck,G (2524) Bad Wiessee 2003}) 12. a3 {[%emt 0:00:12]} g6 {[%emt 0:00:12]} 13. O-O {[%emt 0:03:25]} O-O {[%emt 0:00:50]} 14. Na4 {[%emt 0:06:49]} Ng7 {[%emt 0:01:09]} 15. Rfc1 {[%emt 0:11:01]} Bf5 {[%emt 0:00:29]} 16. Nf4 {[%emt 0:00:09]} Bxd3 {[%emt 0:00:22]} 17. Nxd3 {[%emt 0:05:51]} Nf5 {[%emt 0:00:17]} 18. Nac5 {[%emt 0:25:12]} Nd6 {[%emt 0:05:04]} 19. Nxd7 {[%emt 0:02:38]} Qxd7 {[%emt 0:00:07]} 20. a4 {[%emt 0:00:17]} Ra7 {[%emt 0:03:42]} 21. b3 {[%emt 0:05:06]} Qe7 {[%emt 0:01:28]} 22. Rb2 {[%emt 0:01:30]} Re8 {[%emt 0:01:32]} 23. Rcb1 {[%emt 0:03:04]} Kg7 {[%emt 0:00:21]} 24. g3 {[%emt 0:00:22]} g5 {[%emt 0:02:14]} 25. Qd1 {[%emt 0:02:24]} Rh8 {[%emt 0:07:12]} 26. Qh5 {[%emt 0:00:30]} h6 {[%emt 0:00:04]} 27. Ne5 {[%emt 0:02:30]} Ne4 {[%emt 0:00:45]} 28. f3 {[%emt 0:02:14]} Nd6 {[%emt 0:01:32]} 29. e4 {[%emt 0:02:13]} Qe8 {[%emt 0:01:36]} 30. exd5 {[%emt 0:11:20]} f6 {[%emt 0:00:46]} (30... cxd5 $11 31. Rc2 b5) 31. Qxe8 {[%emt 0:00:05]} Nxe8 {[%emt 0:00:37]} 32. Nd7 {[%emt 0:00:18]} cxd5 {[%emt 0:00:29]} 33. Nb6 {[%emt 0:00:26]} Nd6 {[%emt 0:02:30]} 34. g4 {[%emt 0:04:19]} Rd8 {[%emt 0:06:13]} 35. Re1 {[%emt 0:01:25]} ({Lieber} 35. Rc1 $16) 35... Ra6 {[%emt 0:08:29]} 36. Nxd5 {[%emt 0:00:07]} Nf5 {[%emt 0:00:05]} 37. gxf5 {[%emt 0:01:25]} Rxd5 {[%emt 0:00:05]} 38. Re7+ {[%emt 0:00:33]} Kf8 {[%emt 0:00:06]} 39. Rxb7 {[%emt 0:02:33]} Rxf5 {[%emt 0:00:56]} 40. Rc2 {[%emt 0:00:00]} Ra8 {[%emt 0:00:00]} 41. Kg2 {[%emt 0:00:53]} Rd5 {[%emt 0:01:33]} (41... Rd8 {was worth a try.} 42. Rcc7 h5 43. Rf7+ Kg8) 42. Rc6 {[%emt 0:03:24]} Rf5 {[%emt 0:00:48]} 43. Rb5 {[%emt 0:09:39]} Rxb5 $16 {[%emt 0:00:51]} 44. axb5 {[%emt 0:00:17]} Ke7 {[%emt 0:00:03]} 45. b6 {[%emt 0:00:58]} a4 {[%emt 0:00:04]} 46. bxa4 {[%emt 0:03:34]} Rxa4 {[%emt 0:00:17]} 47. Rc8 {[%emt 0:00:13]} Rb4 {[%emt 0:00:19]} 48. Rb8 {[%emt 0:00:32]} Kd7 {[%emt 0:10:48]} 49. b7 {[%emt 0:08:11]} Kc7 {[%emt 0:34:32]} 50. Rh8 {[%emt 0:00:08]} Kxb7 {[%emt 0:00:08]} 51. Rxh6 {[%emt 0:00:06]} f5 {[%emt 0:02:48]} 52. Rf6 {[%emt 0:03:20]} Rxd4 {[%emt 0:11:10]} 53. Rxf5 {[%emt 0:00:04]} Kc6 {[%emt 0:00:10]} 54. Rxg5 {[%emt 0:00:11]} Kd6 {[%emt 0:00:04]} 55. Rg4 {[%emt 0:01:01]} Rd2+ {[%emt 0:00:05]} 56. Kg3 {[%emt 0:00:02]} Ke5 {[%emt 0:00:07]} 57. h4 {[%emt 0:00:12]} Kf5 {[%emt 0:01:24]} 58. h5 {[%emt 0:00:35]} Rd6 {[%emt 0:04:07]} 59. Rh4 {[%emt 0:00:05]} Rh6 {[%emt 0:00:05]} 60. f4 {[%emt 0:04:41]} Kf6 {[%emt 0:00:10]} 61. Kg4 {[%emt 0:00:06]} Kg7 {[%emt 0:00:06]} 62. Kg5 {[%emt 0:00:07]} Ra6 {[%emt 0:00:08]} 63. f5 {[%emt 0:00:32]} Ra1 {[%emt 0:00:48]} 64. h6+ {[%emt 0:03:01]} Kh7 {[%emt 0:00:07]} 65. Rd4 {[%emt 0:00:49]} Rg1+ {[%emt 0:01:06]} 66. Kf6 {[%emt 0:00:01]} Re1 {[%emt 0:00:09]} 67. Rd7+ {[%emt 0:01:33]} Kxh6 {[%emt 0:00:15]} 68. Rd2 {[%emt 0:00:03]} Rh1 {[%emt 0:01:51]} 69. Rc2 {[%emt 0:01:05]} Rh3 {[%emt 0:00:25]} 70. Rc1 {[%emt 0:00:26]} Rh2 {[%emt 0:00:05]} 71. Re1 {[%emt 0:00:29]} Rh3 {[%emt 0:00:26]} 72. Rd1 {[%emt 0:00:37]} Rh2 {[%emt 0:00:13]} 73. Rd8 {[%emt 0:00:34]} Kh7 {[%emt 0:00:06]} 74. Kf7 {[%emt 0:00:01]} Ra2 {[%emt 0:00:52]} 75. f6 {[%emt 0:01:00]} Ra1 {[%emt 0:04:59]} 76. Kf8 {[%emt 0:00:30]} Ra7 {[%emt 0:12:03]} 77. f7 {[%emt 0:00:09]} Ra4 {[%emt 0:00:30]} 78. Ke7 {[%emt 0:00:37]} 1-0

[Event "79th ARM-ch 1st League 2018"]
[Site "Yerevan"]
[Date "2018.08.19"]
[Round "10"]
[White "Davtyan, Artur"]
[Black "Poghosyan, Suren"]
[Result "1/2-1/2"]
[ECO "E10"]
[WhiteElo "2353"]
[BlackElo "2301"]
[Annotator "NA"]
[PlyCount "78"]
[EventDate "2018.08.09"]
[EventType "tourn"]
[EventCountry "ARM"]
[SourceTitle "playchess.com"]
[Source "ChessBase"]
[SourceQuality "1"]
[TimeControl "40/5400+30:1800+30"]

1. d4 {[%emt 0:00:00]} Nf6 {[%emt 0:00:12]} 2. Nf3 {[%emt 0:01:12]} e6 {[%emt 0:03:29]} 3. c4 {[%emt 0:00:15]} c5 {[%emt 0:00:08]} 4. d5 {[%emt 0:00:04]} b5 {[%emt 0:02:27]} 5. dxe6 {[%emt 0:00:17]} fxe6 {[%emt 0:00:05]} 6. Nc3 {[%emt 0:00:04] E10: Blumenfeld Gambit} (6. cxb5 a6 7. bxa6 Bxa6 8. g3 Nc6 9. Bg2 Be7 10. O-O O-O 11. Nc3 Qe8 12. Re1 d5 13. Bh3 Bd8 14. Ng5 {0-1 (26) Inarkiev,E (2689)-Tregubov,P (2575) Riadh 2017}) 6... b4 {[%emt 0:02:49]} 7. Nb5 {[%emt 0:00:12]} d6 {[%emt 0:02:12]} 8. a3 {[%emt 0:00:12]} a6 {[%emt 0:12:16]} 9. axb4 {[%emt 0:00:21]} Bb7 {[%emt 0:00:15]} 10. Na3 {[%emt 0:00:08]} cxb4 {[%emt 0:01:01]} 11. Nc2 {[%emt 0:06:00]} Nc6 $146 {[%emt 0:00:46]} ({Predecessor:} 11... Nbd7 12. g3 Nc5 13. Bh3 d5 {½-½ (32) Williams,T (2325)-Schmidt,T (2344) ICCF email 2013}) 12. g3 {[%emt 0:00:30]} d5 {[%emt 0:18:53]} 13. cxd5 {[%emt 0:16:57]} b3 {[%emt 0:20:37]} 14. Ne3 {[%emt 0:07:11]} Bb4+ {[%emt 0:01:42]} 15. Bd2 {[%emt 0:01:28]} Nxd5 {[%emt 0:00:23]} 16. Qxb3 {[%emt 0:27:17]} Bxd2+ {[%emt 0:04:30]} 17. Nxd2 {[%emt 0:00:28]} Na5 {[%emt 0:11:24]} 18. Qa3 {[%emt 0:12:34]} Nxe3 {[%emt 0:02:56]} 19. Qxe3 {[%emt 0:00:01]} Bxh1 {[%emt 0:01:48]} 20. Qxe6+ {[%emt 0:00:57]} Qe7 {[%emt 0:00:01]} 21. Qxe7+ {[%emt 0:00:19]} Kxe7 {[%emt 0:00:07]} 22. Rxa5 {[%emt 0:00:02]} Rhc8 {[%emt 0:04:13] [#]} (22... Rhb8 $11 {remains equal.}) 23. f3 $1 {[%emt 0:01:56]} Rc1+ {[%emt 0:06:59]} (23... g6 $16) 24. Kf2 {[%emt 0:00:01]} Rc2 $16 {[%emt 0:00:06]} 25. Ne4 {[%emt 0:12:20]} Rxb2 {[%emt 0:00:22]} 26. Rc5 {[%emt 0:00:37]} Ra7 {[%emt 0:02:11]} 27. Bh3 {[%emt 0:02:33]} a5 {[%emt 0:00:17]} 28. Re5+ {[%emt 0:00:56]} Kd8 {[%emt 0:00:35]} 29. Ng5 {[%emt 0:00:31]} a4 {[%emt 0:01:00]} 30. Ne6+ {[%emt 0:01:07]} Ke7 {[%emt 0:00:01]} 31. Nf4+ {[%emt 0:01:43]} Kf6 {[%emt 0:00:43]} 32. Rf5+ {[%emt 0:02:11]} Ke7 {[%emt 0:00:01]} 33. Re5+ {[%emt 0:00:05]} Kf6 {[%emt 0:00:06]} 34. Rf5+ {[%emt 0:00:22]} Ke7 {[%emt 0:00:02]} 35. Re5+ {[%emt 0:00:18]} Kd8 {[%emt 0:01:27]} 36. Ne6+ {[%emt 0:02:11]} Ke7 {[%emt 0:00:59]} 37. Nf4+ {[%emt 0:01:41]} Kd8 {[%emt 0:00:02]} 38. Ne6+ {[%emt 0:00:33]} Kd7 {[%emt 0:01:18]} 39. Nf4+ {[%emt 0:02:01]} Kd8 {[%emt 0:00:33]} 1/2-1/2

[Event "79th ARM-ch 1st League 2018"]
[Site "Yerevan"]
[Date "2018.08.19"]
[Round "10"]
[White "Gharibyan, Mamikon"]
[Black "Martirosyan, Garik"]
[Result "1/2-1/2"]
[ECO "D37"]
[WhiteElo "2341"]
[BlackElo "2145"]
[Annotator "NA"]
[PlyCount "87"]
[EventDate "2018.08.09"]
[EventType "tourn"]
[EventCountry "ARM"]
[SourceTitle "playchess.com"]
[Source "ChessBase"]
[SourceQuality "1"]
[TimeControl "40/5400+30:1800+30"]

1. d4 {[%emt 0:01:03]} Nf6 {[%emt 0:00:00]} 2. Nf3 {[%emt 0:00:27]} e6 {[%emt 0:00:57]} 3. c4 {[%emt 0:00:16]} d5 {[%emt 0:01:21]} 4. Nc3 {[%emt 0:01:08]} Be7 {[%emt 0:00:14] LiveBook: 19694 Games} 5. Bf4 {[%emt 0:04:44]} O-O {[%emt 0:00:21]} 6. Rc1 {[%emt 0:00:19] D37: Queen's Gambit Declined: 5 Bf4} (6. e3 Nbd7 7. a3 c5 8. cxd5 Nxd5 9. Nxd5 exd5 10. dxc5 Nxc5 11. Be5 Bf5 12. Be2 Bf6 13. O-O Be4 14. Rc1 Ne6 {0-1 (38) Mamedyarov,S (2799)-Carlsen,M (2837) Riadh 2017}) 6... Ne4 {[%emt 0:06:00]} 7. e3 {[%emt 0:07:27]} Nxc3 {[%emt 0:18:24]} 8. bxc3 {[%emt 0:00:14]} c5 {[%emt 0:00:03]} 9. Bd3 $146 {[%emt 0:05:02]} ({Predecessor:} 9. Be2 dxc4 10. Bxc4 Qa5 11. O-O b5 12. Bd3 Bb7 13. Qc2 h6 {1-0 (43) Tran,M (2359)-Pujari,R (2171) Moscow 2018}) 9... Nc6 {[%emt 0:04:58]} 10. O-O {[%emt 0:00:43]} dxc4 {[%emt 0:01:20]} 11. Bxc4 {[%emt 0:05:31]} b6 {[%emt 0:00:41]} 12. Qe2 {[%emt 0:08:08]} Bd6 {[%emt 0:10:34]} 13. Ne5 {[%emt 0:04:44]} Qc7 {[%emt 0:04:24]} 14. Qf3 {[%emt 0:04:21]} Bb7 {[%emt 0:04:11]} 15. Qg3 {[%emt 0:00:59]} Ne7 {[%emt 0:03:35]} 16. Rfd1 {[%emt 0:18:23]} Bd5 {[%emt 0:13:13]} 17. Bd3 {[%emt 0:06:50]} c4 {[%emt 0:02:51]} 18. Nxc4 {[%emt 0:08:57]} Bxf4 {[%emt 0:01:15]} 19. Qxf4 {[%emt 0:00:06]} Qxf4 {[%emt 0:00:53]} 20. exf4 {[%emt 0:00:04]} Rfc8 {[%emt 0:00:07]} 21. Ne3 {[%emt 0:00:48]} Bxa2 {[%emt 0:01:49]} 22. c4 {[%emt 0:02:13]} Bb3 {[%emt 0:00:05]} 23. Rd2 {[%emt 0:02:33]} a5 {[%emt 0:02:05]} 24. Rb1 {[%emt 0:10:35]} a4 {[%emt 0:00:17]} 25. g3 {[%emt 0:00:29]} Ra7 {[%emt 0:02:59]} 26. f5 {[%emt 0:03:31]} Nxf5 $17 {[%emt 0:05:11]} 27. Bxf5 {[%emt 0:01:57]} exf5 {[%emt 0:00:06]} 28. d5 {[%emt 0:00:26]} Rd7 {[%emt 0:04:41]} 29. d6 {[%emt 0:00:19]} Rcd8 {[%emt 0:01:59]} 30. Nxf5 {[%emt 0:00:38]} g6 {[%emt 0:00:59]} 31. Nd4 {[%emt 0:01:28]} Bxc4 {[%emt 0:02:11]} 32. Rb4 {[%emt 0:00:36]} Bd5 {[%emt 0:06:28]} 33. Nb5 {[%emt 0:00:48]} Bc6 {[%emt 0:00:06]} 34. Ra2 {[%emt 0:00:33]} Bxb5 {[%emt 0:01:31]} 35. Rxb5 {[%emt 0:00:04]} Rxd6 {[%emt 0:00:08]} 36. Rxa4 {[%emt 0:00:04]} Rc8 {[%emt 0:00:15]} 37. Rb2 {[%emt 0:01:20]} Kg7 {[%emt 0:00:22]} 38. Ra7 {[%emt 0:00:27]} h5 {[%emt 0:00:30]} 39. Rb7 {[%emt 0:00:21]} Rcc6 {[%emt 0:00:11]} 40. h4 {[%emt 0:00:00]} Rf6 {[%emt 0:00:00]} 41. Kg2 {[%emt 0:01:01]} Rcd6 {[%emt 0:02:10]} 42. Rb8 {[%emt 0:01:43]} Rc6 {[%emt 0:00:43]} 43. Rb7 {[%emt 0:01:04]} Rcd6 {[%emt 0:00:29]} 44. Rb8 {[%emt 0:01:11]} 1/2-1/2

[Event "79th ARM-ch 1st League 2018"]
[Site "Yerevan"]
[Date "2018.08.20"]
[Round "11"]
[White "Hayrapetyan, Artavazd R"]
[Black "Davtyan, Artur"]
[Result "1-0"]
[ECO "A48"]
[WhiteElo "2371"]
[BlackElo "2353"]
[Annotator "NA"]
[PlyCount "83"]
[EventDate "2018.08.09"]
[EventType "tourn"]
[EventCountry "ARM"]
[SourceTitle "playchess.com"]
[Source "ChessBase"]
[SourceQuality "1"]
[TimeControl "40/5400+30:1800+30"]

1. Nf3 {[%emt 0:06:44]} Nf6 {[%emt 0:00:00]} 2. d4 {[%emt 0:00:10]} g6 {[%emt 0:00:00]} 3. e3 {[%emt 0:00:28]} Bg7 {[%emt 0:01:39]} 4. Be2 {[%emt 0:00:06]} b6 {[%emt 0:02:09] A48: 1 d4 Nf6 2 Nf3 g6: Torre, London and Colle Systems} (4... O-O 5. O-O d6 6. b3 e5 7. dxe5 Ng4 8. Bb2 Nc6 9. Nc3 Ngxe5 10. Qd2 Re8 11. Rad1 Nxf3+ 12. Bxf3 Ne5 13. Be2 Be6 14. Nb5 {½-½ (59) Kramnik,V (2792)-Vachier Lagrave,M (2789) Paris 2018}) 5. O-O {[%emt 0:00:18]} Bb7 {[%emt 0:00:02]} 6. c4 {[%emt 0:00:08]} O-O {[%emt 0:00:33]} 7. b4 {[%emt 0:01:13] LiveBook: 3 Games} a5 $146 {[%emt 0:15:13]} ({Predecessor:} 7... c5 8. bxc5 bxc5 9. Bb2 cxd4 10. exd4 Nc6 11. Nbd2 d5 {0-1 (38) Sai Agni,J (2384)-Narayanan,S (2532) Stockholm 2017}) 8. b5 {[%emt 0:00:35]} Ne4 {[%emt 0:00:48]} 9. Bb2 {[%emt 0:01:15]} d6 {[%emt 0:02:00]} 10. Qc2 {[%emt 0:01:22]} Nd7 {[%emt 0:00:53]} 11. Nbd2 {[%emt 0:01:40]} f5 {[%emt 0:07:07]} 12. a4 {[%emt 0:03:37]} e6 {[%emt 0:06:02]} 13. Nb3 {[%emt 0:01:33]} g5 {[%emt 0:14:42]} 14. Nfd2 {[%emt 0:04:13]} Nxd2 {[%emt 0:01:38]} 15. Nxd2 {[%emt 0:01:38]} g4 {[%emt 0:03:01]} 16. f3 {[%emt 0:02:37]} Qg5 {[%emt 0:00:54]} 17. f4 {[%emt 0:04:28]} Qh5 {[%emt 0:08:28]} 18. e4 $14 {[%emt 0:09:05]} Nf6 {[%emt 0:09:37]} 19. Bd3 {[%emt 0:15:45]} g3 {[%emt 0:02:16]} 20. h3 {[%emt 0:00:28]} Ng4 {[%emt 0:00:48]} 21. Rf3 {[%emt 0:02:49]} Qh4 {[%emt 0:00:30]} 22. Nf1 {[%emt 0:03:21]} Nf2 {[%emt 0:08:13]} 23. d5 {[%emt 0:00:41]} fxe4 {[%emt 0:04:14]} 24. Rxg3 {[%emt 0:04:19]} e5 {[%emt 0:00:00]} 25. Qxf2 {[%emt 0:01:28]} Rxf4 {[%emt 0:00:04]} 26. Rxg7+ {[%emt 0:02:00]} Kxg7 {[%emt 0:00:05]} 27. Qxh4 {[%emt 0:00:18]} Rxh4 {[%emt 0:00:02]} 28. Ng3 {[%emt 0:00:32]} Rf8 {[%emt 0:03:40]} 29. Bxe4 {[%emt 0:00:08]} Kg8 {[%emt 0:01:58]} 30. Bc1 {[%emt 0:00:06]} h6 {[%emt 0:01:22]} 31. Bd2 {[%emt 0:00:54]} Kh8 {[%emt 0:00:28]} 32. Re1 {[%emt 0:00:09]} Bc8 {[%emt 0:00:11]} 33. Rf1 {[%emt 0:03:42]} Rxf1+ {[%emt 0:03:28]} 34. Kxf1 {[%emt 0:00:04]} Kg7 {[%emt 0:00:02]} 35. Kf2 {[%emt 0:00:48]} Bd7 {[%emt 0:00:26]} 36. Kf3 {[%emt 0:00:59]} Kf6 {[%emt 0:00:12]} 37. Be3 {[%emt 0:01:46]} Be8 {[%emt 0:01:29]} 38. Bd3 {[%emt 0:22:14]} Bg6 {[%emt 0:00:09]} 39. Bxg6 {[%emt 0:00:08]} Kxg6 {[%emt 0:00:03]} 40. Ne4 {[%emt 0:00:00]} Kf7 {[%emt 0:00:00]} 41. g3 {[%emt 0:02:18]} Rh5 {[%emt 0:01:08]} 42. Kg2 {[%emt 0:01:07]} 1-0

[Event "79th ARM-ch 1st League 2018"]
[Site "Yerevan"]
[Date "2018.08.20"]
[Round "11"]
[White "Poghosyan, Suren"]
[Black "Gharibyan, Mamikon"]
[Result "1-0"]
[ECO "E46"]
[WhiteElo "2301"]
[BlackElo "2341"]
[Annotator "NA"]
[PlyCount "94"]
[EventDate "2018.08.09"]
[EventType "tourn"]
[EventCountry "ARM"]
[SourceTitle "playchess.com"]
[Source "ChessBase"]
[SourceQuality "1"]
[TimeControl "40/5400+30:1800+30"]

1. d4 {[%emt 0:00:14]} Nf6 {[%emt 0:00:00]} 2. c4 {[%emt 0:00:19]} e6 {[%emt 0:00:02]} 3. Nc3 {[%emt 0:00:21]} Bb4 {[%emt 0:00:07]} 4. e3 {[%emt 0:00:16]} O-O {[%emt 0:00:10]} 5. Nge2 {[%emt 0:00:17]} Re8 {[%emt 0:00:06]} 6. a3 {[%emt 0:01:43]} Bf8 {[%emt 0:00:09]} 7. d5 {[%emt 0:01:19]} a5 {[%emt 0:00:11]} 8. g3 {[%emt 0:00:50] LiveBook: 38 Games E46: Nimzo-Indian: Rubinstein: 4 e3 0-0 5 Ne2 without early Bd3} (8. Ng3 Na6 9. Bd3 Nc5 10. Bc2 exd5 11. cxd5 b5 12. O-O Bb7 13. Qd4 b4 14. axb4 axb4 15. Rxa8 Qxa8 16. Qxb4 Nxd5 {1-0 (57) Ipatov,A (2613)-Eljanov,P (2723) Dubai 2014}) 8... Na6 {[%emt 0:00:31]} 9. Bg2 {[%emt 0:05:58]} Nc5 {[%emt 0:01:03]} 10. b3 {[%emt 0:00:35]} exd5 {[%emt 0:01:14]} 11. cxd5 {[%emt 0:02:14]} b6 {[%emt 0:00:59]} 12. O-O {[%emt 0:03:37]} Ba6 {[%emt 0:02:57]} 13. Ra2 {[%emt 0:05:52]} Nd3 {[%emt 0:08:13]} 14. Rd2 {[%emt 0:04:39]} Nxc1 {[%emt 0:05:53]} 15. Qxc1 {[%emt 0:00:17]} Bc5 $146 {[%emt 0:00:48]} ({Predecessor:} 15... b5) 16. Rfd1 {[%emt 0:10:00]} Rc8 {[%emt 0:07:56]} 17. h3 {[%emt 0:05:05]} Qe7 {[%emt 0:01:46]} 18. Ra2 {[%emt 0:02:02]} g6 {[%emt 0:04:36]} 19. Nd4 {[%emt 0:04:58]} Qe5 {[%emt 0:10:58]} 20. b4 {[%emt 0:06:49]} Bxd4 {[%emt 0:02:46]} 21. Rxd4 {[%emt 0:05:55]} c5 {[%emt 0:00:51]} 22. dxc6 {[%emt 0:03:36]} dxc6 {[%emt 0:00:07]} 23. bxa5 {[%emt 0:02:51]} c5 {[%emt 0:01:18]} 24. Rd1 {[%emt 0:03:34]} Bc4 {[%emt 0:03:30]} 25. Rb2 {[%emt 0:07:26]} bxa5 $14 {[%emt 0:00:25]} 26. Rb6 {[%emt 0:02:19]} Rb8 {[%emt 0:25:41]} 27. f4 {[%emt 0:01:55]} Qe7 {[%emt 0:00:19]} 28. Rxb8 {[%emt 0:01:07]} Rxb8 {[%emt 0:00:07]} 29. e4 {[%emt 0:00:10]} Rb3 {[%emt 0:01:46]} 30. e5 {[%emt 0:05:37]} Nh5 {[%emt 0:00:30]} 31. Ne4 {[%emt 0:02:46]} Be6 {[%emt 0:01:05]} 32. g4 {[%emt 0:01:52]} Ng3 {[%emt 0:01:30]} 33. Nf6+ {[%emt 0:01:41]} Kg7 {[%emt 0:02:05]} 34. Qd2 {[%emt 0:01:04]} Rb8 {[%emt 0:03:12]} 35. Qd3 {[%emt 0:01:56]} Bb3 {[%emt 0:01:06]} 36. Rb1 {[%emt 0:01:56]} c4 {[%emt 0:01:04]} 37. Qxg3 {[%emt 0:00:09]} Qxa3 {[%emt 0:00:11]} 38. g5 {[%emt 0:03:30]} Rd8 {[%emt 0:01:42]} 39. Kh2 {[%emt 0:02:05]} Qa2 {[%emt 0:02:25]} 40. Rg1 {[%emt 0:00:00]} Qd2 {[%emt 0:00:00]} 41. Qh4 {[%emt 0:04:42]} Kf8 {[%emt 0:01:33]} 42. Ne4 {[%emt 0:01:05]} Qe3 {[%emt 0:05:46]} 43. Re1 {[%emt 0:05:06]} Qb6 {[%emt 0:00:33]} 44. Qxh7 {[%emt 0:02:50]} a4 {[%emt 0:00:45]} 45. Nd6 {[%emt 0:00:55]} c3 {[%emt 0:00:34]} 46. e6 {[%emt 0:00:16]} Bxe6 {[%emt 0:00:27]} 47. Rxe6 {[%emt 0:00:08]} Rxd6 {[%emt 0:00:06]} 1-0

[Event "79th ARM-ch 1st League 2018"]
[Site "Yerevan"]
[Date "2018.08.20"]
[Round "11"]
[White "Sargsyan, Tigran R"]
[Black "Sargsyan, Shant"]
[Result "1/2-1/2"]
[ECO "D38"]
[WhiteElo "2136"]
[BlackElo "2472"]
[Annotator "RC"]
[PlyCount "143"]
[EventDate "2018.08.09"]
[EventType "tourn"]
[EventCountry "ARM"]
[SourceTitle "playchess.com"]
[Source "ChessBase"]
[SourceQuality "1"]
[TimeControl "40/5400+30:1800+30"]

1. d4 {[%emt 0:00:00]} Nf6 {[%emt 0:00:30]} 2. Nf3 {[%emt 0:00:16]} d5 {[%emt 0:00:12]} 3. c4 {[%emt 0:00:21]} e6 {[%emt 0:00:06]} 4. Nc3 {[%emt 0:00:43]} Bb4 {[%emt 0:01:04]} 5. e3 {[%emt 0:00:47]} O-O {[%emt 0:01:31]} 6. Bd2 {[%emt 0:00:22]} Re8 {[%emt 0:05:32]} 7. Bd3 {[%emt 0:03:15]} b6 {[%emt 0:03:40]} 8. cxd5 {[%emt 0:03:41]} exd5 {[%emt 0:01:47]} 9. Rc1 {[%emt 0:00:35]} a6 {[%emt 0:03:29]} 10. Ne5 {[%emt 0:10:22]} Bb7 {[%emt 0:04:38]} 11. O-O {[%emt 0:07:28]} Bf8 {[%emt 0:05:05]} 12. f4 {[%emt 0:07:27]} c5 {[%emt 0:00:58]} 13. Be1 {[%emt 0:12:53]} Nc6 {[%emt 0:01:45]} 14. Bf2 {[%emt 0:06:47]} Rc8 {[%emt 0:05:57]} 15. Qf3 {[%emt 0:04:17]} b5 {[%emt 0:02:49]} 16. Bf5 {[%emt 0:12:32]} Rc7 {[%emt 0:02:51]} 17. Bh4 {[%emt 0:02:22]} Be7 {[%emt 0:17:14]} 18. Rcd1 {[%emt 0:15:04]} g6 {[%emt 0:06:21]} 19. Bb1 {[%emt 0:00:24]} cxd4 {[%emt 0:00:48]} 20. exd4 {[%emt 0:00:32]} Ne4 {[%emt 0:05:43]} 21. Bxe7 {[%emt 0:02:16]} Nxe7 {[%emt 0:00:20]} 22. Nxe4 {[%emt 0:00:58]} dxe4 {[%emt 0:00:06]} 23. Bxe4 {[%emt 0:00:28]} Bxe4 {[%emt 0:00:20]} 24. Qxe4 {[%emt 0:00:01]} Qd5 {[%emt 0:00:18]} 25. Qxd5 {[%emt 0:02:32]} Nxd5 {[%emt 0:00:03]} 26. Rd2 {[%emt 0:00:55]} Rd8 {[%emt 0:02:04]} 27. g3 {[%emt 0:00:54]} f6 {[%emt 0:00:56]} 28. Nf3 {[%emt 0:01:22]} Kf7 {[%emt 0:00:51]} 29. Re1 {[%emt 0:00:20]} a5 {[%emt 0:00:49]} 30. Ree2 {[%emt 0:01:03]} Rc1+ {[%emt 0:01:49]} 31. Kf2 {[%emt 0:00:25]} b4 {[%emt 0:00:53]} 32. a3 {[%emt 0:03:05]} bxa3 {[%emt 0:01:56]} 33. bxa3 {[%emt 0:00:01]} Rc3 {[%emt 0:00:43]} 34. a4 {[%emt 0:00:59]} Rc4 {[%emt 0:00:20]} 35. Rb2 {[%emt 0:01:09]} Rd7 {[%emt 0:00:46]} 36. Rec2 {[%emt 0:00:45]} Rxa4 {[%emt 0:00:20]} 37. Ra2 {[%emt 0:00:16]} Rxa2 {[%emt 0:00:35]} 38. Rxa2 {[%emt 0:00:01]} Ra7 {[%emt 0:00:05]} 39. Ra3 {[%emt 0:01:05]} a4 {[%emt 0:00:39]} 40. Ke2 {[%emt 0:00:00]} Rc7 {[%emt 0:00:00]} 41. Kd2 {[%emt 0:09:12]} Nb6 {[%emt 0:06:43]} 42. Ra2 {[%emt 0:01:12]} Nc4+ {[%emt 0:07:10]} 43. Kd3 {[%emt 0:02:22]} a3 {[%emt 0:00:38]} 44. Ne1 {[%emt 0:01:30]} Nb2+ {[%emt 0:12:45]} 45. Ke2 {[%emt 0:05:54]} Re7+ {[%emt 0:02:20]} 46. Kd2 {[%emt 0:06:50]} Nc4+ {[%emt 0:01:09]} 47. Kd3 {[%emt 0:00:51]} Rxe1 {[%emt 0:00:56]} 48. Kxc4 {[%emt 0:00:05]} Re3 {[%emt 0:00:03]} 49. d5 {[%emt 0:00:38]} Ke7 {[%emt 0:00:19]} 50. Kd4 {[%emt 0:01:36]} Rb3 {[%emt 0:03:35]} 51. Kc4 {[%emt 0:00:24]} Re3 {[%emt 0:01:50]} 52. Kd4 {[%emt 0:00:06]} Rf3 {[%emt 0:00:04]} 53. Re2+ {[%emt 0:00:12]} Kd7 {[%emt 0:00:13]} 54. Re6 {[%emt 0:00:10]} a2 {[%emt 0:01:03]} 55. Ra6 {[%emt 0:00:04]} Rf2 {[%emt 0:00:02]} 56. Ra7+ {[%emt 0:04:16]} Kd6 {[%emt 0:00:06]} 57. Ra6+ {[%emt 0:00:05]} Kc7 {[%emt 0:00:11]} 58. d6+ {[%emt 0:01:15]} Kb7 {[%emt 0:01:34]} 59. Ra3 {[%emt 0:00:09]} Kc6 {[%emt 0:02:07]} 60. Ra6+ {[%emt 0:00:03]} Kd7 {[%emt 0:00:12]} 61. Kc5 {[%emt 0:01:31]} Rxh2 {[%emt 0:07:35]} 62. Ra7+ {[%emt 0:00:31]} Ke6 {[%emt 0:00:07]} 63. Re7+ {[%emt 0:00:18]} Kf5 {[%emt 0:00:01]} 64. Ra7 {[%emt 0:00:16]} h5 {[%emt 0:01:10]} 65. Kc6 {[%emt 0:01:30]} Rc2+ {[%emt 0:02:42]} 66. Kd7 {[%emt 0:00:07]} g5 {[%emt 0:05:42]} 67. fxg5 {[%emt 0:00:13]} fxg5 {[%emt 0:00:02]} 68. Ke8 {[%emt 0:01:16]} Re2+ {[%emt 0:00:40]} 69. Kf7 {[%emt 0:00:15]} Rd2 {[%emt 0:00:26]} 70. Ke7 {[%emt 0:00:07]} Re2+ {[%emt 0:04:30]} 71. Kf7 {[%emt 0:00:04]} Rd2 {[%emt 0:00:19]} 72. Ke7 {[%emt 0:00:03]} 1/2-1/2